[Event "Early-Titled-Tuesday-Blitz-April-23-2024"]
[Site "Chess.com"]
[Date "2024.04.23"]
[Round "9"]
[White "tetrix83"]
[Black "KnightDuta"]
[Result "1-0"]
[WhiteElo "2654"]
[BlackElo "2743"]
[TimeControl "180+1"]
[EndTime "9:52:45 PDT"]
[Termination "tetrix83 won by checkmate"]

1. e4 {[%clk 0:02:59.6]} 1... d5 {[%clk 0:02:59.7]} 2. exd5 {[%clk 0:02:56.9]}
2... Nf6 {[%clk 0:03:00]} 3. Nf3 {[%clk 0:02:56.4]} 3... Nxd5 {[%clk 0:03:00.5]}
4. d4 {[%clk 0:02:41.6]} 4... Bg4 {[%clk 0:03:00.5]} 5. h3 {[%clk 0:02:36.7]}
5... Bxf3 {[%clk 0:03:00.4]} 6. Qxf3 {[%clk 0:02:34.6]} 6... e6 {[%clk
0:03:01.3]} 7. c3 {[%clk 0:02:31.3]} 7... c5 {[%clk 0:02:59.7]} 8. Bb5+ {[%clk
0:02:23.3]} 8... Nd7 {[%clk 0:02:41.4]} 9. dxc5 {[%clk 0:02:02.6]} 9... Bxc5
{[%clk 0:02:38.4]} 10. O-O {[%clk 0:02:02.8]} 10... O-O {[%clk 0:02:37.9]} 11.
Rd1 {[%clk 0:02:02.7]} 11... Ne5 {[%clk 0:02:25.9]} 12. Qe2 {[%clk 0:01:49.6]}
12... Qf6 {[%clk 0:02:12.9]} 13. Rf1 {[%clk 0:00:51.9]} 13... Rfd8 {[%clk
0:01:58.9]} 14. Qe4 {[%clk 0:00:51.3]} 14... Rac8 {[%clk 0:01:27.6]} 15. Be2
{[%clk 0:00:46.5]} 15... Ng6 {[%clk 0:01:16]} 16. g3 {[%clk 0:00:44.5]} 16... a6
{[%clk 0:00:53.2]} 17. h4 {[%clk 0:00:44.3]} 17... h6 {[%clk 0:00:51.5]} 18. Nd2
{[%clk 0:00:44.1]} 18... b5 {[%clk 0:00:47.1]} 19. Nf3 {[%clk 0:00:33.4]} 19...
Nb6 {[%clk 0:00:31.8]} 20. h5 {[%clk 0:00:31.5]} 20... Ne7 {[%clk 0:00:31]} 21.
Bf4 {[%clk 0:00:31.6]} 21... Nc6 {[%clk 0:00:24.1]} 22. Rad1 {[%clk 0:00:30.7]}
22... Nd5 {[%clk 0:00:24.7]} 23. Bc1 {[%clk 0:00:29.3]} 23... Rb8 {[%clk
0:00:21.7]} 24. Kg2 {[%clk 0:00:29.2]} 24... a5 {[%clk 0:00:20.3]} 25. Nh2
{[%clk 0:00:23.6]} 25... b4 {[%clk 0:00:20.3]} 26. c4 {[%clk 0:00:22.2]} 26...
Nde7 {[%clk 0:00:20.7]} 27. Ng4 {[%clk 0:00:21.9]} 27... Qf5 {[%clk 0:00:18.5]}
28. Qxf5 {[%clk 0:00:15.6]} 28... exf5 {[%clk 0:00:19.4]} 29. Ne3 {[%clk
0:00:14.3]} 29... Nd4 {[%clk 0:00:20]} 30. Bf3 {[%clk 0:00:14.4]} 30... Nxf3
{[%clk 0:00:19.4]} 31. Kxf3 {[%clk 0:00:15.3]} 31... g6 {[%clk 0:00:19.5]} 32.
Nd5 {[%clk 0:00:14.2]} 32... Nc6 {[%clk 0:00:18.2]} 33. Bxh6 {[%clk 0:00:13.6]}
33... Ne5+ {[%clk 0:00:18.5]} 34. Kg2 {[%clk 0:00:10.7]} 34... Nxc4 {[%clk
0:00:19.4]} 35. Bg5 {[%clk 0:00:10]} 35... Rdc8 {[%clk 0:00:12.6]} 36. b3 {[%clk
0:00:09.5]} 36... Ne5 {[%clk 0:00:09.1]} 37. Rfe1 {[%clk 0:00:08.7]} 37... Ng4
{[%clk 0:00:09.2]} 38. hxg6 {[%clk 0:00:07.3]} 38... Nxf2 {[%clk 0:00:08.5]} 39.
Nf6+ {[%clk 0:00:08.2]} 39... Kg7 {[%clk 0:00:08.3]} 40. Rd7 {[%clk 0:00:04.5]}
40... Kxg6 {[%clk 0:00:08.8]} 41. Bh4 {[%clk 0:00:03.7]} 41... Rh8 {[%clk
0:00:07.3]} 42. Nd5 {[%clk 0:00:02.8]} 42... Ne4 {[%clk 0:00:06.1]} 43. Nf4+
{[%clk 0:00:03]} 43... Kg7 {[%clk 0:00:05.4]} 44. Ne6+ {[%clk 0:00:03]} 44...
Kg6 {[%clk 0:00:06.1]} 45. Rxe4 {[%clk 0:00:02.7]} 45... fxe4 {[%clk 0:00:04]}
46. Nxc5 {[%clk 0:00:02.7]} 46... Rbc8 {[%clk 0:00:04.8]} 47. Rd6+ {[%clk
0:00:02.9]} 47... Kh7 {[%clk 0:00:03.2]} 48. Nxe4 {[%clk 0:00:02.7]} 48... Rc2+
{[%clk 0:00:03.3]} 49. Kh3 {[%clk 0:00:03.1]} 49... Rxa2 {[%clk 0:00:04]} 50.
Ng5+ {[%clk 0:00:02.5]} 50... Kg7 {[%clk 0:00:03.7]} 51. Kg4 {[%clk 0:00:02.9]}
51... Rb2 {[%clk 0:00:02.5]} 52. Rd3 {[%clk 0:00:02.6]} 52... Re8 {[%clk
0:00:02.8]} 53. Kf4 {[%clk 0:00:02.1]} 53... Kg6 {[%clk 0:00:03.4]} 54. Nf3
{[%clk 0:00:02.1]} 54... Rbe2 {[%clk 0:00:03.7]} 55. Rd6+ {[%clk 0:00:01.5]}
55... Kh7 {[%clk 0:00:04]} 56. Rd7 {[%clk 0:00:01.6]} 56... R8e4+ {[%clk
0:00:03.4]} 57. Kf5 {[%clk 0:00:01.5]} 57... Kg8 {[%clk 0:00:03.9]} 58. Bf6
{[%clk 0:00:01.6]} 58... Re8 {[%clk 0:00:03.9]} 59. Ng5 {[%clk 0:00:01.8]} 59...
Rf2+ {[%clk 0:00:04.4]} 60. Kg4 {[%clk 0:00:01.1]} 60... Rxf6 {[%clk 0:00:05.1]}
61. Ra7 {[%clk 0:00:01.8]} 61... Rg6 {[%clk 0:00:05.7]} 62. Rxa5 {[%clk
0:00:02.1]} 62... Re5 {[%clk 0:00:06.3]} 63. Rxe5 {[%clk 0:00:01.4]} 63... Rd6
{[%clk 0:00:06.4]} 64. Re8+ {[%clk 0:00:02]} 64... Kg7 {[%clk 0:00:06.9]} 65.
Re4 {[%clk 0:00:02.9]} 65... Rd3 {[%clk 0:00:06.9]} 66. Nf3 {[%clk 0:00:03.1]}
66... Rxb3 {[%clk 0:00:06.9]} 67. Kf4 {[%clk 0:00:04]} 67... Rb1 {[%clk
0:00:06.4]} 68. Ne5 {[%clk 0:00:04.5]} 68... b3 {[%clk 0:00:06.7]} 69. Rb4
{[%clk 0:00:05]} 69... b2 {[%clk 0:00:07.2]} 70. Kg4 {[%clk 0:00:05.3]} 70...
Kf6 {[%clk 0:00:07.1]} 71. Nc4 {[%clk 0:00:05.1]} 71... Kg6 {[%clk 0:00:07.2]}
72. Nxb2 {[%clk 0:00:05.3]} 72... f5+ {[%clk 0:00:07.9]} 73. Kf3 {[%clk
0:00:04.6]} 73... Kg5 {[%clk 0:00:08.2]} 74. Nd3 {[%clk 0:00:04.4]} 74... Rd1
{[%clk 0:00:08.8]} 75. Nf2 {[%clk 0:00:04.7]} 75... Rd5 {[%clk 0:00:08.6]} 76.
Nh3+ {[%clk 0:00:05.1]} 76... Kf6 {[%clk 0:00:08.7]} 77. Nf2 {[%clk 0:00:06]}
77... Ra5 {[%clk 0:00:08.6]} 78. Rb3 {[%clk 0:00:06.5]} 78... Kg5 {[%clk
0:00:09]} 79. Rd3 {[%clk 0:00:07.1]} 79... Rc5 {[%clk 0:00:09.5]} 80. Re3 {[%clk
0:00:07.6]} 80... Rb5 {[%clk 0:00:09.9]} 81. Nh3+ {[%clk 0:00:08.2]} 81... Kf6
{[%clk 0:00:10.1]} 82. Nf4 {[%clk 0:00:08.5]} 82... Rb1 {[%clk 0:00:10.3]} 83.
Re6+ {[%clk 0:00:08.2]} 83... Kf7 {[%clk 0:00:11]} 84. Rc6 {[%clk 0:00:08.3]}
84... Re1 {[%clk 0:00:11.1]} 85. Kg2 {[%clk 0:00:08.6]} 85... Re3 {[%clk
0:00:11.1]} 86. Kh3 {[%clk 0:00:08.8]} 86... Re8 {[%clk 0:00:11.3]} 87. Kh4
{[%clk 0:00:09]} 87... Rh8+ {[%clk 0:00:11.6]} 88. Nh5 {[%clk 0:00:09.2]} 88...
Rg8 {[%clk 0:00:11.8]} 89. Nf4 {[%clk 0:00:08.4]} 89... Ke7 {[%clk 0:00:12.7]}
90. Rc7+ {[%clk 0:00:08.1]} 90... Kf6 {[%clk 0:00:12.9]} 91. Rc6+ {[%clk
0:00:08.6]} 91... Ke5 {[%clk 0:00:13]} 92. Rg6 {[%clk 0:00:08.2]} 92... Rh8+
{[%clk 0:00:12.7]} 93. Kg5 {[%clk 0:00:08.3]} 93... Ke4 {[%clk 0:00:13]} 94. Kf6
{[%clk 0:00:07.2]} 94... Rf8+ {[%clk 0:00:10.8]} 95. Ke7 {[%clk 0:00:07.2]}
95... Rh8 {[%clk 0:00:10.5]} 96. Ne6 {[%clk 0:00:07.4]} 96... Kf3 {[%clk
0:00:08.7]} 97. Nd4+ {[%clk 0:00:07.5]} 97... Ke4 {[%clk 0:00:07.9]} 98. Ne6
{[%clk 0:00:07.7]} 98... Kf3 {[%clk 0:00:05.2]} 99. Kf6 {[%clk 0:00:08.1]} 99...
Ke4 {[%clk 0:00:02.5]} 100. Ng5+ {[%clk 0:00:06]} 100... Ke3 {[%clk 0:00:03.1]}
101. Kxf5 {[%clk 0:00:06.1]} 101... Kf2 {[%clk 0:00:03.7]} 102. Ne4+ {[%clk
0:00:06]} 102... Kf3 {[%clk 0:00:04.4]} 103. Rf6 {[%clk 0:00:05.4]} 103... Rh5+
{[%clk 0:00:04.3]} 104. Kg6+ {[%clk 0:00:03.7]} 104... Kg4 {[%clk 0:00:05.1]}
105. Nf2+ {[%clk 0:00:03.5]} 105... Kxg3 {[%clk 0:00:05.3]} 106. Kxh5 {[%clk
0:00:03.5]} 106... Kg2 {[%clk 0:00:05.1]} 107. Kg5 {[%clk 0:00:04]} 107... Kg3
{[%clk 0:00:03.8]} 108. Ng4 {[%clk 0:00:04.9]} 108... Kg2 {[%clk 0:00:04.3]}
109. Rc6 {[%clk 0:00:05.5]} 109... Kg3 {[%clk 0:00:05.2]} 110. Rc3+ {[%clk
0:00:06.2]} 110... Kg2 {[%clk 0:00:06.1]} 111. Kf4 {[%clk 0:00:06.9]} 111... Kf1
{[%clk 0:00:07]} 112. Ke3 {[%clk 0:00:06.8]} 112... Ke1 {[%clk 0:00:07.7]} 113.
Rc1# {[%clk 0:00:06.8]} 1-0

[Event "Early-Titled-Tuesday-Blitz-April-23-2024"]
[Site "Chess.com"]
[Date "2024.04.23"]
[Round "10"]
[White "Anu-triz"]
[Black "balack95"]
[Result "0-1"]
[WhiteElo "2165"]
[BlackElo "2415"]
[TimeControl "180+1"]
[EndTime "9:55:59 PDT"]
[Termination "balack95 won by resignation"]

1. e4 {[%clk 0:03:00.9]} 1... c5 {[%clk 0:03:00]} 2. d3 {[%clk 0:02:59.5]} 2...
d5 {[%clk 0:02:58.5]} 3. exd5 {[%clk 0:02:58.7]} 3... Qxd5 {[%clk 0:02:57.8]} 4.
Nc3 {[%clk 0:02:59.4]} 4... Qd8 {[%clk 0:02:57.4]} 5. Nf3 {[%clk 0:03:00]} 5...
Nf6 {[%clk 0:02:57.5]} 6. g3 {[%clk 0:03:00.3]} 6... g6 {[%clk 0:02:55.7]} 7.
Bg2 {[%clk 0:03:01]} 7... Bg7 {[%clk 0:02:56.4]} 8. Kf1 {[%clk 0:03:01.6]} 8...
O-O {[%clk 0:02:57.1]} 9. Kg1 {[%clk 0:02:52.4]} 9... Nc6 {[%clk 0:02:57.3]} 10.
h3 {[%clk 0:02:52]} 10... e5 {[%clk 0:02:57.4]} 11. Kh2 {[%clk 0:02:52.1]} 11...
Re8 {[%clk 0:02:57.5]} 12. Re1 {[%clk 0:02:52]} 12... h6 {[%clk 0:02:50.9]} 13.
Be3 {[%clk 0:02:51.9]} 13... Nd4 {[%clk 0:02:41.8]} 14. Qd2 {[%clk 0:02:47.2]}
14... Rb8 {[%clk 0:02:34.8]} 15. Bxh6 {[%clk 0:02:45.2]} 15... b5 {[%clk
0:02:27.6]} 16. Bxg7 {[%clk 0:02:44.6]} 16... Nxf3+ {[%clk 0:02:26.6]} 17. Bxf3
{[%clk 0:02:44]} 17... Kxg7 {[%clk 0:02:27.5]} 18. a3 {[%clk 0:02:40.8]} 18...
Rh8 {[%clk 0:02:27]} 19. Bg2 {[%clk 0:02:34.8]} 19... Bxh3 {[%clk 0:02:14.8]}
20. Bxh3 {[%clk 0:02:31.8]} 20... Qd7 {[%clk 0:02:15.2]} 21. g4 {[%clk
0:02:21.7]} 21... Rxh3+ {[%clk 0:02:14.8]} 22. Kxh3 {[%clk 0:02:19]} 22... Qxg4+
{[%clk 0:02:14.8]} 23. Kh2 {[%clk 0:02:18.9]} 23... Rh8+ {[%clk 0:02:15.7]} 0-1

[Event "Early-Titled-Tuesday-Blitz-April-23-2024"]
[Site "Chess.com"]
[Date "2024.04.23"]
[Round "10"]
[White "Likvidator228"]
[Black "GelmanAlexander"]
[Result "0-1"]
[WhiteElo "2515"]
[BlackElo "2642"]
[TimeControl "180+1"]
[EndTime "9:56:40 PDT"]
[Termination "GelmanAlexander won by resignation"]

1. d4 {[%clk 0:03:00.9]} 1... Nf6 {[%clk 0:02:59.8]} 2. Nf3 {[%clk 0:03:01]}
2... c5 {[%clk 0:03:00.2]} 3. c3 {[%clk 0:03:01.2]} 3... b6 {[%clk 0:03:00.1]}
4. Bf4 {[%clk 0:03:00.1]} 4... Bb7 {[%clk 0:03:00.2]} 5. e3 {[%clk 0:03:00.5]}
5... d6 {[%clk 0:03:00.6]} 6. h3 {[%clk 0:03:01]} 6... Nbd7 {[%clk 0:03:01.1]}
7. Nbd2 {[%clk 0:03:00.5]} 7... h6 {[%clk 0:03:01.7]} 8. Bc4 {[%clk 0:03:00]}
8... a6 {[%clk 0:03:01.5]} 9. a4 {[%clk 0:02:59.9]} 9... g5 {[%clk 0:02:59.5]}
10. Bh2 {[%clk 0:02:56.7]} 10... Rg8 {[%clk 0:02:59.7]} 11. Qb3 {[%clk
0:02:47.2]} 11... e6 {[%clk 0:02:59.7]} 12. Qc2 {[%clk 0:02:34.9]} 12... h5
{[%clk 0:02:58.6]} 13. e4 {[%clk 0:02:32.2]} 13... g4 {[%clk 0:02:58.6]} 14.
hxg4 {[%clk 0:02:32.3]} 14... hxg4 {[%clk 0:02:59.4]} 15. Ng1 {[%clk 0:02:25.4]}
15... cxd4 {[%clk 0:02:55.9]} 16. cxd4 {[%clk 0:02:25.6]} 16... Rc8 {[%clk
0:02:50.7]} 17. Qd3 {[%clk 0:02:25.2]} 17... d5 {[%clk 0:02:51]} 18. exd5 {[%clk
0:02:24.5]} 18... Nxd5 {[%clk 0:02:51.9]} 19. Bg3 {[%clk 0:01:48.4]} 19... Nb4
{[%clk 0:02:38.5]} 20. Qb3 {[%clk 0:01:46.3]} 20... b5 {[%clk 0:02:34.9]} 21.
axb5 {[%clk 0:01:43.5]} 21... axb5 {[%clk 0:02:35.8]} 22. Bxb5 {[%clk
0:01:17.7]} 22... Nc2+ {[%clk 0:02:34.6]} 23. Ke2 {[%clk 0:01:13.9]} 23... Nxd4+
{[%clk 0:02:33.6]} 0-1

[Event "Early-Titled-Tuesday-Blitz-April-23-2024"]
[Site "Chess.com"]
[Date "2024.04.23"]
[Round "10"]
[White "Louis-Paulsen-Fan"]
[Black "PawnEatingZombie"]
[Result "1-0"]
[WhiteElo "2351"]
[BlackElo "2232"]
[TimeControl "180+1"]
[EndTime "9:56:56 PDT"]
[Termination "Louis-Paulsen-Fan won by resignation"]

1. d4 {[%clk 0:03:00.9]} 1... Nf6 {[%clk 0:02:59.2]} 2. Nf3 {[%clk 0:03:01]}
2... g6 {[%clk 0:02:59.4]} 3. c4 {[%clk 0:03:01.3]} 3... Bg7 {[%clk 0:02:59.6]}
4. Nc3 {[%clk 0:03:01.8]} 4... O-O {[%clk 0:02:59.6]} 5. e4 {[%clk 0:03:01.8]}
5... d6 {[%clk 0:02:59.4]} 6. Be2 {[%clk 0:03:02.1]} 6... e5 {[%clk 0:02:58.3]}
7. O-O {[%clk 0:03:01.5]} 7... exd4 {[%clk 0:02:58.5]} 8. Nxd4 {[%clk
0:03:01.3]} 8... Re8 {[%clk 0:02:59.1]} 9. f3 {[%clk 0:03:01.9]} 9... c6 {[%clk
0:02:58.4]} 10. Nc2 {[%clk 0:02:57.2]} 10... Na6 {[%clk 0:02:56.9]} 11. Be3
{[%clk 0:02:56]} 11... Nc7 {[%clk 0:02:50.4]} 12. Qd2 {[%clk 0:02:53.3]} 12...
d5 {[%clk 0:02:49.6]} 13. Rad1 {[%clk 0:02:49.2]} 13... Be6 {[%clk 0:02:33.4]}
14. e5 {[%clk 0:02:41.1]} 14... Nd7 {[%clk 0:02:25.1]} 15. cxd5 {[%clk
0:02:39.7]} 15... Nxd5 {[%clk 0:02:20.3]} 16. Nxd5 {[%clk 0:02:38.8]} 16... cxd5
{[%clk 0:02:18.3]} 17. f4 {[%clk 0:02:37.9]} 17... f6 {[%clk 0:01:56.7]} 18. Nd4
{[%clk 0:02:32.6]} 18... fxe5 {[%clk 0:01:54.7]} 19. Nxe6 {[%clk 0:02:32.6]}
19... Rxe6 {[%clk 0:01:54.7]} 20. Qxd5 {[%clk 0:02:31.2]} 20... Qe7 {[%clk
0:01:48.2]} 21. Qxd7 {[%clk 0:02:18.6]} 21... exf4 {[%clk 0:01:39.4]} 22. Bc4
{[%clk 0:02:16]} 22... Qxd7 {[%clk 0:01:29.5]} 23. Rxd7 {[%clk 0:02:15.1]} 23...
fxe3 {[%clk 0:01:29.4]} 24. Bxe6+ {[%clk 0:02:15]} 24... Kh8 {[%clk 0:01:29.6]}
25. Rff7 {[%clk 0:02:08.4]} 1-0

[Event "Early-Titled-Tuesday-Blitz-April-23-2024"]
[Site "Chess.com"]
[Date "2024.04.23"]
[Round "10"]
[White "oggy1984"]
[Black "campochess"]
[Result "1-0"]
[WhiteElo "2376"]
[BlackElo "2146"]
[TimeControl "180+1"]
[EndTime "9:56:58 PDT"]
[Termination "oggy1984 won by resignation"]

1. h4 {[%clk 0:03:00]} 1... d5 {[%clk 0:02:58]} 2. c4 {[%clk 0:02:55.6]} 2... c6
{[%clk 0:02:54.1]} 3. Nf3 {[%clk 0:02:46.9]} 3... Nf6 {[%clk 0:02:52.5]} 4. b3
{[%clk 0:02:44.9]} 4... e6 {[%clk 0:02:52]} 5. Bb2 {[%clk 0:02:44.7]} 5... Be7
{[%clk 0:02:52]} 6. Qc2 {[%clk 0:02:41.9]} 6... a6 {[%clk 0:02:50.6]} 7. d3
{[%clk 0:02:38.6]} 7... Nbd7 {[%clk 0:02:49.6]} 8. Nbd2 {[%clk 0:02:37.5]} 8...
b5 {[%clk 0:02:48.8]} 9. g4 {[%clk 0:02:23.2]} 9... Nxg4 {[%clk 0:02:41.7]} 10.
Bxg7 {[%clk 0:02:21.9]} 10... Bf6 {[%clk 0:02:41.7]} 11. Bxh8 {[%clk 0:02:12]}
11... Bxh8 {[%clk 0:02:41.6]} 12. d4 {[%clk 0:02:11.2]} 12... f5 {[%clk
0:02:32.3]} 13. e3 {[%clk 0:02:09.9]} 13... Ndf6 {[%clk 0:02:26]} 14. Rg1 {[%clk
0:02:03.6]} 14... Bd7 {[%clk 0:02:13]} 15. Ne5 {[%clk 0:01:58.1]} 15... Nxe5
{[%clk 0:02:10.6]} 16. dxe5 {[%clk 0:01:57.2]} 16... Ne4 {[%clk 0:02:10.6]} 17.
Rg8+ {[%clk 0:01:55.7]} 17... Ke7 {[%clk 0:02:09.1]} 18. Rxd8 {[%clk 0:01:54.7]}
18... Rxd8 {[%clk 0:02:08.8]} 19. Nxe4 {[%clk 0:01:33.1]} 19... fxe4 {[%clk
0:02:03.8]} 20. f4 {[%clk 0:01:31.4]} 20... exf3 {[%clk 0:01:59.6]} 21. Qxh7+
{[%clk 0:01:30.6]} 1-0

[Event "Early-Titled-Tuesday-Blitz-April-23-2024"]
[Site "Chess.com"]
[Date "2024.04.23"]
[Round "10"]
[White "djano"]
[Black "inagreV"]
[Result "1-0"]
[WhiteElo "2625"]
[BlackElo "2410"]
[TimeControl "180+1"]
[EndTime "9:56:59 PDT"]
[Termination "djano won by resignation"]

1. e4 {[%clk 0:03:00.9]} 1... e6 {[%clk 0:02:59.7]} 2. Qe2 {[%clk 0:03:01.1]}
2... e5 {[%clk 0:02:58.2]} 3. Nf3 {[%clk 0:03:00.3]} 3... Nc6 {[%clk 0:02:58.1]}
4. g3 {[%clk 0:03:00.2]} 4... Bc5 {[%clk 0:02:55.1]} 5. Bg2 {[%clk 0:03:00.3]}
5... d6 {[%clk 0:02:55.1]} 6. O-O {[%clk 0:03:00.2]} 6... Nf6 {[%clk 0:02:54.4]}
7. h3 {[%clk 0:02:58.9]} 7... O-O {[%clk 0:02:53.2]} 8. c3 {[%clk 0:02:59.4]}
8... a5 {[%clk 0:02:52.8]} 9. d3 {[%clk 0:02:56.9]} 9... h6 {[%clk 0:02:50.4]}
10. Nbd2 {[%clk 0:02:55.8]} 10... a4 {[%clk 0:02:50.1]} 11. Nc4 {[%clk
0:02:55.4]} 11... Kh7 {[%clk 0:02:47.3]} 12. Be3 {[%clk 0:02:55.6]} 12... Qe7
{[%clk 0:02:44.7]} 13. Bxc5 {[%clk 0:02:54.8]} 13... dxc5 {[%clk 0:02:45.6]} 14.
Ne3 {[%clk 0:02:55.1]} 14... Be6 {[%clk 0:02:42.4]} 15. Nh4 {[%clk 0:02:54]}
15... g6 {[%clk 0:02:41.6]} 16. Nd5 {[%clk 0:02:46]} 16... Qd8 {[%clk
0:02:33.6]} 17. Qf3 {[%clk 0:02:39.3]} 17... Ng8 {[%clk 0:02:27.9]} 18. Qe3
{[%clk 0:02:33.9]} 18... b6 {[%clk 0:02:18.6]} 19. f4 {[%clk 0:02:29.9]} 19...
exf4 {[%clk 0:02:17.3]} 20. Nxf4 {[%clk 0:02:25.9]} 20... Bd7 {[%clk 0:02:11.4]}
21. e5 {[%clk 0:02:20.1]} 21... Qg5 {[%clk 0:02:07.5]} 22. d4 {[%clk 0:01:57.7]}
22... cxd4 {[%clk 0:02:07.8]} 23. cxd4 {[%clk 0:01:58.6]} 23... Rae8 {[%clk
0:02:04.4]} 24. Rac1 {[%clk 0:01:54.8]} 24... Nxe5 {[%clk 0:01:47.3]} 25. dxe5
{[%clk 0:01:53.8]} 25... Rxe5 {[%clk 0:01:47.3]} 26. Qf2 {[%clk 0:01:49.2]}
26... c5 {[%clk 0:01:45.2]} 27. Nf3 {[%clk 0:01:49.4]} 1-0

[Event "Early-Titled-Tuesday-Blitz-April-23-2024"]
[Site "Chess.com"]
[Date "2024.04.23"]
[Round "10"]
[White "kiwibobo"]
[Black "SaiAgni_98"]
[Result "0-1"]
[WhiteElo "2317"]
[BlackElo "2470"]
[TimeControl "180+1"]
[EndTime "9:57:02 PDT"]
[Termination "SaiAgni_98 won by resignation"]

1. e4 {[%clk 0:02:55.2]} 1... d6 {[%clk 0:02:59.5]} 2. d4 {[%clk 0:02:55.4]}
2... Nf6 {[%clk 0:02:59.8]} 3. Nc3 {[%clk 0:02:54.8]} 3... Nbd7 {[%clk
0:03:00.3]} 4. g4 {[%clk 0:02:52.8]} 4... h6 {[%clk 0:02:52.3]} 5. Bg2 {[%clk
0:02:51.6]} 5... e5 {[%clk 0:02:49.8]} 6. Nf3 {[%clk 0:02:51]} 6... Nxg4 {[%clk
0:02:40.8]} 7. h3 {[%clk 0:02:51.1]} 7... Ngf6 {[%clk 0:02:39.7]} 8. Rg1 {[%clk
0:02:52]} 8... g6 {[%clk 0:02:35.9]} 9. Be3 {[%clk 0:02:52]} 9... Bg7 {[%clk
0:02:35.7]} 10. Qd2 {[%clk 0:02:52.6]} 10... c6 {[%clk 0:02:35.8]} 11. O-O-O
{[%clk 0:02:53]} 11... Qa5 {[%clk 0:02:35.7]} 12. Kb1 {[%clk 0:02:52.4]} 12...
Nb6 {[%clk 0:02:15.9]} 13. dxe5 {[%clk 0:02:40.9]} 13... Nc4 {[%clk 0:02:14.7]}
14. Qd4 {[%clk 0:02:39.8]} 14... Qb4 {[%clk 0:01:59.6]} 15. Bc1 {[%clk
0:02:39.8]} 15... Na3+ {[%clk 0:01:56.6]} 16. Ka1 {[%clk 0:02:39.5]} 16... Nxc2+
{[%clk 0:01:57.3]} 17. Kb1 {[%clk 0:02:39.4]} 17... Nxd4 {[%clk 0:01:57.3]} 18.
Rxd4 {[%clk 0:02:39.4]} 18... Qc5 {[%clk 0:01:54]} 19. exf6 {[%clk 0:02:36.5]}
19... Bxf6 {[%clk 0:01:54.5]} 20. Rdd1 {[%clk 0:02:28.6]} 20... Bxc3 {[%clk
0:01:48.4]} 21. bxc3 {[%clk 0:02:26.9]} 21... Be6 {[%clk 0:01:47.9]} 22. Nd4
{[%clk 0:02:21.6]} 22... Bc4 {[%clk 0:01:38.5]} 23. Bb2 {[%clk 0:02:16]} 23...
O-O-O {[%clk 0:01:36]} 24. Nb3 {[%clk 0:02:11.2]} 24... Qxf2 {[%clk 0:01:28.5]}
25. Rdf1 {[%clk 0:02:11.3]} 25... Bxf1 {[%clk 0:01:28]} 0-1

[Event "Early-Titled-Tuesday-Blitz-April-23-2024"]
[Site "Chess.com"]
[Date "2024.04.23"]
[Round "10"]
[White "LaPiToB"]
[Black "ilqar_74"]
[Result "0-1"]
[WhiteElo "2332"]
[BlackElo "2736"]
[TimeControl "180+1"]
[EndTime "9:57:14 PDT"]
[Termination "ilqar_74 won by resignation"]

1. c4 {[%clk 0:02:58]} 1... Nf6 {[%clk 0:02:59.4]} 2. d4 {[%clk 0:02:56.8]} 2...
g6 {[%clk 0:02:59.4]} 3. Nc3 {[%clk 0:02:55.7]} 3... Bg7 {[%clk 0:02:59.9]} 4.
e4 {[%clk 0:02:56.2]} 4... d6 {[%clk 0:03:00.3]} 5. Be2 {[%clk 0:02:54.3]} 5...
O-O {[%clk 0:02:55.7]} 6. Nf3 {[%clk 0:02:54.2]} 6... e5 {[%clk 0:02:40]} 7. d5
{[%clk 0:02:53.3]} 7... Nbd7 {[%clk 0:02:35.7]} 8. O-O {[%clk 0:02:43.2]} 8...
Nh5 {[%clk 0:02:35]} 9. Bg5 {[%clk 0:02:35]} 9... f6 {[%clk 0:02:32.5]} 10. Be3
{[%clk 0:02:35]} 10... a6 {[%clk 0:02:26.3]} 11. b4 {[%clk 0:02:21.8]} 11... Nf4
{[%clk 0:02:26.1]} 12. Rc1 {[%clk 0:02:16.4]} 12... Nxe2+ {[%clk 0:02:20.4]} 13.
Qxe2 {[%clk 0:02:11.5]} 13... f5 {[%clk 0:02:20.4]} 14. c5 {[%clk 0:02:07.7]}
14... Nf6 {[%clk 0:02:15.9]} 15. exf5 {[%clk 0:01:55.2]} 15... gxf5 {[%clk
0:02:15.2]} 16. cxd6 {[%clk 0:01:51.7]} 16... cxd6 {[%clk 0:02:15.1]} 17. Na4
{[%clk 0:01:50.5]} 17... f4 {[%clk 0:02:11]} 18. Bb6 {[%clk 0:01:48.7]} 18...
Qe8 {[%clk 0:02:11.4]} 19. Rc7 {[%clk 0:01:45.7]} 19... Qxa4 {[%clk 0:02:06.4]}
20. Rfc1 {[%clk 0:01:16.9]} 20... Qb5 {[%clk 0:02:01.1]} 21. Qxb5 {[%clk
0:01:14.5]} 21... axb5 {[%clk 0:02:02]} 22. Ng5 {[%clk 0:01:13.6]} 22... Nxd5
{[%clk 0:01:59.3]} 0-1

[Event "Early-Titled-Tuesday-Blitz-April-23-2024"]
[Site "Chess.com"]
[Date "2024.04.23"]
[Round "10"]
[White "Slovineanu"]
[Black "Chesstiger64"]
[Result "0-1"]
[WhiteElo "2485"]
[BlackElo "2380"]
[TimeControl "180+1"]
[EndTime "9:57:29 PDT"]
[Termination "Chesstiger64 won by resignation"]

1. d4 {[%clk 0:03:00.9]} 1... Nf6 {[%clk 0:02:58.3]} 2. Nf3 {[%clk 0:03:01.4]}
2... e6 {[%clk 0:02:57.8]} 3. c4 {[%clk 0:03:01.9]} 3... c5 {[%clk 0:02:57.9]}
4. d5 {[%clk 0:03:01.6]} 4... b5 {[%clk 0:02:58.5]} 5. dxe6 {[%clk 0:03:00.1]}
5... fxe6 {[%clk 0:02:59.4]} 6. Bg5 {[%clk 0:02:24.4]} 6... Be7 {[%clk
0:02:53.9]} 7. cxb5 {[%clk 0:02:14.7]} 7... a6 {[%clk 0:02:50.1]} 8. e3 {[%clk
0:02:06.3]} 8... axb5 {[%clk 0:02:49.2]} 9. Bxb5 {[%clk 0:02:04.3]} 9... Qa5+
{[%clk 0:02:49.1]} 10. Nc3 {[%clk 0:02:04.5]} 10... Ne4 {[%clk 0:02:49]} 11.
Bxe7 {[%clk 0:01:59.3]} 11... Nxc3 {[%clk 0:02:47.7]} 12. bxc3 {[%clk
0:01:59.5]} 12... Kxe7 {[%clk 0:02:41.2]} 13. Qb3 {[%clk 0:01:37.1]} 13... Ba6
{[%clk 0:02:31.7]} 14. Bxa6 {[%clk 0:01:31.7]} 14... Qxa6 {[%clk 0:02:31.6]} 15.
c4 {[%clk 0:01:19.9]} 15... Qa5+ {[%clk 0:02:30.9]} 16. Ke2 {[%clk 0:01:14.5]}
16... Nc6 {[%clk 0:02:31.3]} 17. Rhb1 {[%clk 0:01:05.9]} 17... Rhb8 {[%clk
0:02:29]} 18. Qc2 {[%clk 0:00:58.5]} 18... Rxb1 {[%clk 0:02:27.3]} 19. Qxb1
{[%clk 0:00:58.8]} 19... Qc3 {[%clk 0:02:20]} 20. Qc1 {[%clk 0:00:51.8]} 20...
Rxa2+ {[%clk 0:02:16.9]} 0-1